bitfinex-derivatives/quotes_BTCF0:USTF0_20251119
["timestamp","ask_amount","ask_price","bid_price","bid_amount"]
[1763586254206,0.00016737,89654.0,89653.0,0.2006373]
[1763586254399,0.00016737,89654.0,89653.0,0.56255633]
[1763586254704,0.19999,89673.0,89672.0,0.08897]
[1763586254907,0.11081167,89673.0,89672.0,0.09008903]
[1763586255801,0.00181167,89673.0,89672.0,0.09008903]
[1763586256006,0.00281167,89673.0,89672.0,0.09008903]
[1763586256406,0.001,89673.0,89672.0,0.09008903]
[1763586256606,0.003,89673.0,89672.0,0.09008903]
[1763586257999,0.002,89673.0,89672.0,0.09008903]
[1763586258306,0.00481167,89673.0,89672.0,0.09008903]
[1763586258803,0.00381167,89673.0,89672.0,0.09008903]
[1763586259111,0.002,89673.0,89672.0,0.09008903]
[1763586259500,0.001,89673.0,89672.0,0.09008903]
[1763586259705,0.002,89673.0,89672.0,0.09008903]
[1763586260002,0.00016727,89681.0,89680.0,0.2006037]
[1763586260207,0.00016727,89681.0,89680.0,0.56252273]
[1763586260604,0.00016727,89681.0,89680.0,0.45088903]
[1763586260803,0.00197894,89681.0,89680.0,0.56252273]
[1763586261203,0.00016727,89681.0,89680.0,0.56252273]
[1763586261622,0.00116727,89681.0,89680.0,0.56252273]
[1763586262306,0.00297894,89681.0,89680.0,0.56252273]
[1763586262705,0.00497894,89681.0,89680.0,0.45088903]
[1763586262900,0.00316727,89681.0,89680.0,0.45088903]
[1763586263405,0.00027875,89686.0,89681.0,0.1116324]
[1763586263607,0.40365,89699.0,89698.0,0.08897]
[1763586263812,0.36261167,89699.0,89698.0,0.09008903]
[1763586264111,0.3608,89706.0,89705.0,0.08897]
[1763586264315,0.45179,89717.0,89705.0,0.00111903]
[1763586264501,0.00181167,89716.0,89705.0,0.00111903]
[1763586264698,0.09099,89706.0,89705.0,0.00111903]
[1763586264903,0.09280167,89706.0,89705.0,0.00111903]
[1763586265510,0.09280167,89706.0,89705.0,0.08353903]
[1763586266309,0.09580167,89706.0,89705.0,0.08353903]
[1763586266606,0.09580167,89706.0,89705.0,0.04377903]
[1763586266999,0.09780167,89706.0,89705.0,0.04377903]
[1763586267206,0.09780167,89706.0,89705.0,0.08353903]
[1763586267810,0.04966167,89706.0,89705.0,0.08353903]
[1763586268115,0.09098167,89706.0,89705.0,0.00111903]
[1763586268312,0.09098167,89706.0,89705.0,0.04162903]
[1763586268510,0.00681167,89706.0,89705.0,0.08138903]
[1763586268716,0.09023167,89706.0,89705.0,0.08138903]
[1763586268914,0.09023167,89706.0,89705.0,0.00111903]
[1763586270215,0.005,89706.0,89705.0,0.08138903]
[1763586270421,0.00681167,89706.0,89705.0,0.08138903]
[1763586270917,0.09023167,89706.0,89705.0,0.08138903]
[1763586271112,0.00681167,89706.0,89705.0,0.08138903]
[1763586271315,0.00481167,89706.0,89705.0,0.08138903]
[1763586271620,0.00581167,89706.0,89705.0,0.08138903]
[1763586271812,0.002,89706.0,89705.0,0.08138903]
[1763586272012,0.00381167,89706.0,89705.0,0.08138903]
[1763586272319,0.08104,89703.0,89702.0,0.00016727]
[1763586272518,0.08285167,89703.0,89702.0,0.00016727]
[1763586272817,0.08285167,89703.0,89702.0,0.0012863]
[1763586273412,0.08285167,89703.0,89702.0,0.0839863]
[1763586273612,0.08385167,89703.0,89702.0,0.0012863]
[1763586273813,0.08485167,89703.0,89702.0,0.0432263]
[1763586274012,0.08485167,89703.0,89702.0,0.0839863]
[1763586274205,0.19377167,89703.0,89702.0,0.0839863]
[1763586274410,0.11273167,89703.0,89702.0,0.0839863]
[1763586274720,0.00381167,89703.0,89702.0,0.0839863]
[1763586274921,0.11273167,89703.0,89702.0,0.0839863]
[1763586275423,0.00381167,89703.0,89702.0,0.0839863]
[1763586275812,0.002,89703.0,89702.0,0.0839863]
[1763586276220,0.36096727,89720.0,89719.0,0.0827]
[1763586276221,0.39923727,89720.0,89719.0,0.0827]
[1763586276415,0.50996894,89720.0,89719.0,0.08381903]
[1763586277118,0.36096727,89720.0,89719.0,0.08381903]
[1763586277315,0.00016727,89720.0,89719.0,0.08381903]
[1763586277514,0.00397894,89720.0,89719.0,0.08381903]
[1763586279220,0.04224894,89720.0,89719.0,0.08381903]
[1763586279435,0.00397894,89720.0,89719.0,0.08381903]
[1763586279731,0.08501894,89720.0,89719.0,0.08381903]
[1763586280129,0.00397894,89720.0,89719.0,0.08381903]
[1763586280628,0.08501894,89720.0,89719.0,0.08381903]
[1763586280821,0.08501894,89720.0,89719.0,0.04305903]
[1763586281126,0.00216727,89720.0,89719.0,0.08381903]
[1763586281917,0.00027863,89726.0,89725.0,0.0827]
[1763586282226,0.00027863,89726.0,89725.0,0.44461903]
[1763586283031,0.18992,89743.0,89742.0,0.0827]
[1763586283215,0.19173167,89743.0,89742.0,0.08381903]
[1763586284115,0.00181167,89743.0,89742.0,0.08381903]
[1763586284317,0.08285167,89743.0,89742.0,0.08381903]
[1763586284724,0.00181167,89743.0,89742.0,0.08381903]
[1763586285628,0.00381167,89743.0,89742.0,0.08381903]
[1763586286427,0.002,89743.0,89742.0,0.08381903]
[1763586286928,0.002,89743.0,89742.0,0.44461903]
[1763586288424,0.002,89743.0,89742.0,0.87461903]
[1763586289030,0.00016652,89751.0,89750.0,0.2182566]
[1763586289324,0.00016652,89751.0,89750.0,0.10782903]
[1763586289525,0.08301819,89751.0,89750.0,0.00111903]
[1763586290223,0.08501819,89751.0,89750.0,0.00111903]
[1763586291131,0.08104,89735.0,89734.0,0.00016716]
[1763586291427,0.08285167,89735.0,89734.0,0.00128619]
[1763586292230,0.08485167,89735.0,89734.0,0.00128619]
[1763586292424,0.19373167,89735.0,89734.0,0.08398619]
[1763586292621,0.19373167,89735.0,89734.0,0.00128619]
[1763586292826,0.19373167,89735.0,89734.0,0.04322619]
[1763586293628,0.19373167,89735.0,89734.0,0.00128619]
[1763586294035,0.19373167,89735.0,89734.0,0.04322619]
[1763586294333,0.08485167,89735.0,89734.0,0.19555269]
[1763586294524,0.00381167,89735.0,89734.0,0.19555269]
[1763586295427,0.00381167,89735.0,89734.0,0.08398619]
[1763586295629,0.04208167,89735.0,89734.0,0.08398619]
[1763586295935,0.08485167,89735.0,89734.0,0.08398619]
[1763586296632,0.00381167,89735.0,89734.0,0.08398619]
[1763586296834,0.04208167,89735.0,89734.0,0.08398619]
[1763586298036,0.00381167,89735.0,89734.0,0.08398619]
[1763586298632,0.002,89735.0,89734.0,0.08398619]
[1763586299834,0.26386017,89760.0,89750.0,0.10671]
[1763586300037,0.00197819,89751.0,89750.0,0.10782903]
[1763586300221,0.00197819,89751.0,89750.0,0.21937563]
[1763586300426,0.00016652,89751.0,89750.0,0.21937563]
[1763586301032,0.08501819,89751.0,89750.0,0.08381903]
[1763586301237,0.08501819,89751.0,89750.0,0.00111903]
[1763586301634,0.08501819,89751.0,89750.0,0.04305903]
[1763586301938,0.00397819,89751.0,89750.0,0.10531903]
[1763586302622,0.04077819,89751.0,89750.0,0.10531903]
[1763586302836,0.08135819,89751.0,89750.0,0.10531903]
[1763586304239,0.00397819,89751.0,89750.0,0.10531903]
[1763586304732,0.08135819,89751.0,89750.0,0.08381903]
[1763586304933,0.07738,89741.0,89740.0,0.03812]
[1763586305122,0.43999167,89741.0,89740.0,0.08101903]
[1763586305329,0.03861167,89741.0,89740.0,0.10251903]
[1763586305533,0.07919167,89741.0,89740.0,0.10251903]
[1763586306038,0.00181167,89741.0,89740.0,0.10251903]
[1763586306236,0.00216652,89751.0,89750.0,0.1014]
[1763586306437,0.08135819,89751.0,89750.0,0.10251903]
[1763586306833,0.07935819,89751.0,89750.0,0.10251903]
[1763586307631,0.08135819,89751.0,89750.0,0.10251903]
[1763586309440,0.04077819,89751.0,89750.0,0.10251903]
[1763586309635,0.08135819,89751.0,89750.0,0.10251903]
[1763586309824,0.07738,89743.0,89742.0,0.09137]
[1763586310031,0.07919167,89743.0,89742.0,0.09248903]
[1763586310322,0.07919167,89743.0,89742.0,0.17238903]
[1763586310527,0.03861167,89743.0,89742.0,0.17238903]
[1763586310832,0.18803167,89743.0,89742.0,0.17238903]
[1763586311031,0.19003167,89743.0,89742.0,0.17238903]
[1763586311935,0.08119167,89743.0,89742.0,0.17238903]
[1763586312138,0.14945167,89743.0,89742.0,0.17238903]
[1763586312438,0.11265167,89743.0,89742.0,0.17238903]
[1763586312630,0.08119167,89743.0,89742.0,0.17238903]
[1763586312934,0.00381167,89743.0,89742.0,0.17238903]
[1763586313131,0.00381167,89743.0,89742.0,0.53318903]
[1763586313435,0.00381167,89743.0,89742.0,0.44181903]
[1763586313637,0.002,89743.0,89742.0,0.44181903]
[1763586313833,0.00016652,89751.0,89750.0,0.1014]
[1763586314032,0.00016652,89751.0,89750.0,0.21406563]
[1763586314235,0.3610785,89766.0,89765.0,0.0799]
[1763586314536,0.3610785,89766.0,89765.0,0.08101903]
[1763586314745,0.36289017,89766.0,89765.0,0.08101903]
[1763586315036,0.00209017,89766.0,89765.0,0.08101903]
[1763586315335,0.05588,89784.0,89783.0,0.0799]
[1763586315536,0.05588,89784.0,89783.0,0.08101903]
[1763586315740,0.1088,89803.0,89783.0,0.08101903]
[1763586315935,0.00181167,89802.0,89783.0,0.08101903]
[1763586316140,0.3608,89790.0,89789.0,0.0799]
[1763586316331,0.36261167,89790.0,89789.0,0.08101903]
[1763586316536,0.43999167,89790.0,89789.0,0.00111903]
[1763586317444,0.43999167,89790.0,89789.0,0.08101903]
[1763586317638,0.44199167,89790.0,89789.0,0.08101903]
[1763586318637,0.08119167,89790.0,89789.0,0.08101903]
[1763586318840,0.002,89790.0,89789.0,0.08101903]
[1763586319440,0.002,89790.0,89789.0,0.44181903]
[1763586319746,0.002,89790.0,89789.0,0.08101903]
[1763586320045,0.3608,89812.0,89805.0,0.0799]
[1763586320228,0.3608,89812.0,89805.0,0.08101903]
[1763586320434,0.03889005,89806.0,89805.0,0.08101903]
[1763586320637,0.07947005,89806.0,89805.0,0.08101903]
[1763586320839,0.03889005,89806.0,89805.0,0.08101903]
[1763586322046,0.00209005,89806.0,89805.0,0.08101903]
[1763586322239,0.00509005,89806.0,89805.0,0.08101903]
[1763586322940,0.00409005,89806.0,89805.0,0.08101903]
[1763586323142,0.00227838,89806.0,89805.0,0.08101903]
[1763586323537,0.00409005,89806.0,89805.0,0.08101903]
[1763586324246,0.7216,89812.0,89811.0,0.0799]
[1763586324448,0.00808473,89850.0,89811.0,0.0799]
[1763586324449,0.3608,89834.0,89831.0,0.1114455]
[1763586324747,0.00181167,89834.0,89833.0,0.08101903]
[1763586324946,0.07919167,89834.0,89833.0,0.00111903]
[1763586325249,0.03861167,89834.0,89833.0,0.08101903]
[1763586325438,0.36261167,89834.0,89833.0,0.08101903]
[1763586325844,0.36888473,89850.0,89845.0,0.0799]
[1763586326044,0.00208993,89846.0,89845.0,0.08101903]
[1763586326746,0.07165993,89846.0,89845.0,0.08101903]
[1763586326943,0.07165993,89846.0,89845.0,0.00111903]
[1763586326944,0.43245993,89846.0,89845.0,0.00111903]
[1763586327437,0.43445993,89846.0,89845.0,0.00111903]
[1763586327845,0.54321993,89846.0,89824.0,0.00016697]
[1763586328148,0.3608,89831.0,89830.0,0.06757]
[1763586328349,0.36261167,89831.0,89830.0,0.06868903]
[1763586328935,0.50453826,89846.0,89845.0,0.06757]
[1763586329152,0.50634993,89846.0,89845.0,0.06868903]
[1763586329351,0.00408993,89846.0,89845.0,0.06868903]
[1763586329563,0.00227826,89846.0,89845.0,0.06868903]
[1763586329764,0.00208993,89846.0,89845.0,0.06868903]
[1763586330853,0.00027826,89846.0,89845.0,0.06868903]
[1763586331754,0.00227826,89846.0,89845.0,0.06868903]
[1763586331953,0.00227826,89846.0,89845.0,0.42948903]
[1763586332662,0.10872,89864.0,89863.0,0.06837]
[1763586332865,0.11053167,89864.0,89863.0,0.06948903]
[1763586333960,0.39255,89880.0,89879.0,0.03437]
[1763586334162,0.36261167,89880.0,89879.0,0.06948903]
[1763586334555,0.3608,89880.0,89879.0,0.06948903]
[1763586334751,0.00027813,89886.0,89885.0,0.06837]
[1763586334959,0.00027813,89886.0,89885.0,0.06948903]
[1763586335664,0.0664798,89886.0,89885.0,0.00111903]
[1763586335866,0.0338398,89886.0,89885.0,0.06948903]
[1763586336254,0.0664798,89886.0,89879.0,0.01]
[1763586336457,0.44482,89880.0,89879.0,0.01111903]
[1763586336655,0.44663167,89880.0,89879.0,0.01111903]
[1763586337471,0.42700167,89880.0,89879.0,0.07448903]
[1763586337770,0.00027813,89886.0,89879.0,0.06948903]
[1763586337959,0.0338398,89886.0,89885.0,0.06837]
[1763586338160,0.0338398,89886.0,89885.0,0.06948903]
[1763586338457,0.0664798,89886.0,89885.0,0.06948903]
[1763586338654,0.0664798,89886.0,89885.0,0.00111903]
[1763586339368,0.0664798,89886.0,89885.0,0.03548903]
[1763586339559,0.0664798,89886.0,89885.0,0.06948903]
[1763586339960,0.0020898,89886.0,89885.0,0.06948903]
[1763586340868,0.00027813,89886.0,89885.0,0.06948903]
[1763586343263,0.38043,89916.0,89904.0,0.034]
[1763586343463,0.06439,89895.0,89894.0,0.39517]
[1763586343668,0.06620167,89895.0,89894.0,0.36191903]
[1763586344273,0.06620167,89895.0,89894.0,0.39628903]
[1763586344473,0.39255,89903.0,89902.0,0.06837]
[1763586344769,0.06620167,89903.0,89902.0,0.03548903]
[1763586344973,0.06620167,89903.0,89902.0,0.00111903]
[1763586345172,0.06620167,89903.0,89894.0,0.3608]
[1763586345372,0.06620167,89903.0,89842.0,0.61972238]
[1763586345373,0.06439,89887.0,89871.0,0.3608]
[1763586345679,0.06439,89879.0,89866.0,0.1114026]
[1763586345975,0.06439,89866.0,89865.0,0.2200434]
[1763586346161,0.06620167,89866.0,89865.0,0.28953243]
[1763586346666,0.00016586,89874.0,89873.0,0.111394]
[1763586346867,0.00016586,89874.0,89873.0,0.54168303]
[1763586350572,0.00197753,89874.0,89873.0,0.54168303]
[1763586351178,0.06636753,89874.0,89873.0,0.39628903]
[1763586351472,0.00016586,89874.0,89873.0,0.43028903]
[1763586352178,0.3608,89896.0,89895.0,0.06837]
[1763586352377,0.36261167,89896.0,89895.0,0.18085573]
[1763586353269,0.00181167,89896.0,89895.0,0.18085573]
[1763586354081,0.03175,89906.0,89905.0,0.1797231]
[1763586354280,0.03356167,89906.0,89905.0,0.18084213]
[1763586354881,0.00181167,89906.0,89905.0,0.18084213]
[1763586355277,0.3608,89914.0,89913.0,0.06837]
[1763586355482,0.36261167,89914.0,89913.0,0.06948903]
[1763586355878,0.00181167,89914.0,89913.0,0.06948903]
[1763586356780,0.03356167,89914.0,89913.0,0.06948903]
[1763586356978,0.06439,89911.0,89902.0,0.3608]
[1763586357184,0.06620167,89903.0,89902.0,0.3608]
[1763586357386,0.06620167,89903.0,89902.0,0.36191903]
[1763586357884,0.00181167,89903.0,89902.0,0.43028903]
[1763586358477,0.06620167,89903.0,89902.0,0.06948903]
[1763586358678,0.06620167,89903.0,89902.0,0.03548903]
[1763586358880,0.06439,89888.0,89887.0,0.03453686]
[1763586359076,0.00181167,89888.0,89887.0,0.06965589]
[1763586359481,0.3608,89905.0,89899.0,0.06837]
[1763586359782,0.06439,89905.0,89904.0,0.00111903]
[1763586359982,0.06620167,89905.0,89904.0,0.00111903]
[1763586361587,0.06439,89888.0,89887.0,0.00016686]
[1763586361785,0.00181167,89888.0,89887.0,0.06290589]
[1763586362376,0.00181167,89888.0,89887.0,0.42370589]
[1763586363194,0.1086,89900.0,89887.0,0.36208589]
[1763586363390,0.03205,89896.0,89895.0,0.39088]
[1763586363591,0.03386167,89896.0,89895.0,0.42353903]
[1763586365594,0.06801167,89896.0,89895.0,0.36191903]
[1763586367196,0.06801167,89896.0,89895.0,0.3608]
[1763586368886,0.0662,89888.0,89887.0,0.00016686]
[1763586369198,0.06801167,89888.0,89887.0,0.00016686]
[1763586369391,0.06801167,89888.0,89866.0,0.4694]
[1763586369392,0.03415,89869.0,89868.0,0.1730202]
[1763586369595,0.00181167,89869.0,89868.0,0.17413923]
[1763586370097,0.03386167,89869.0,89868.0,0.17413923]
[1763586370697,0.00181167,89869.0,89868.0,0.17413923]
[1763586370888,0.00181167,89869.0,89868.0,0.17513923]
[1763586371693,0.00016686,89877.0,89876.0,0.1730102]
[1763586371887,0.3608,89907.0,89893.0,0.111368]
[1763586372089,0.0662,89895.0,89894.0,0.03227803]
[1763586372288,0.0662,89895.0,89894.0,0.00219803]
[1763586372492,0.08464,89904.0,89903.0,0.1113568]
[1763586372692,0.08464,89904.0,89903.0,0.11355483]
[1763586372999,0.08464,89904.0,89903.0,0.00219803]
[1763586373296,0.0662,89896.0,89895.0,0.00016686]
[1763586373485,0.0662,89896.0,89895.0,0.00236489]
[1763586373689,0.0662,89896.0,89895.0,0.06398489]
[1763586374597,0.4694,89908.0,89895.0,0.00236489]
[1763586374795,0.1086,89908.0,89900.0,0.3608]
[1763586375000,0.0662,89908.0,89907.0,0.06381803]
[1763586375498,0.1086,89922.0,89907.0,0.06381803]
[1763586375693,0.03205,89912.0,89911.0,0.5337669]
[1763586375897,0.1748,89922.0,89921.0,0.1113345]
[1763586376200,0.0662,89922.0,89921.0,0.00219803]
[1763586376589,0.0662,89922.0,89921.0,0.06381803]
[1763586376988,0.0662,89921.0,89920.0,0.3608]
[1763586377294,0.03205,89902.0,89896.0,0.3608]
[1763586377500,0.03205,89898.0,89897.0,0.00219803]
[1763586377890,0.0662,89898.0,89897.0,0.00219803]
[1763586380899,0.39285,89910.0,89909.0,0.06162]
[1763586381102,0.427,89910.0,89909.0,0.00219803]
[1763586381401,0.10856,89924.0,89910.0,0.1113481]
[1763586381592,0.03415,89916.0,89915.0,0.1113411]
[1763586381797,0.0662,89916.0,89915.0,0.11353913]
[1763586381993,0.0662,89916.0,89915.0,0.00219803]
[1763586384395,0.03232801,89926.0,89925.0,0.03008]
[1763586384594,0.06647801,89926.0,89925.0,0.39307803]
[1763586384891,0.00027801,89926.0,89925.0,0.42461803]
[1763586386299,0.34619401,89944.0,89943.0,0.1654673]
[1763586386504,0.02704,89952.0,89945.0,0.1113042]
[1763586386800,0.06892,89952.0,89951.0,0.00219803]
[1763586388308,0.05447,89960.0,89951.0,0.00219803]
[1763586388602,0.07207,89952.0,89951.0,0.00219803]
[1763586388793,0.02704,89936.0,89935.0,0.11148316]
[1763586389107,0.05447,89936.0,89935.0,0.00236489]
[1763586389501,0.05447,89936.0,89935.0,0.11368209]
[1763586390009,0.05447,89936.0,89935.0,0.14073209]
[1763586390192,0.05447,89936.0,89935.0,0.00236489]
[1763586390500,0.05447,89936.0,89935.0,0.02941489]
[1763586390908,0.05447,89936.0,89935.0,0.05652489]
[1763586391207,0.05447,89943.0,89936.0,0.1113159]
[1763586391407,0.02704,89938.0,89937.0,0.00219803]
[1763586391702,0.02704,89938.0,89937.0,0.02924803]
[1763586392209,0.05686,89949.0,89948.0,0.1113004]
[1763586392506,0.05686,89949.0,89948.0,0.00219803]
[1763586393001,0.05686,89937.0,89936.0,0.3608]
[1763586393196,0.05686,89937.0,89936.0,0.36299803]
[1763586393397,0.05686,89937.0,89936.0,0.39190803]
[1763586394008,0.02906,89937.0,89936.0,0.42105803]
[1763586395213,0.05686,89944.0,89943.0,0.1113068]
[1763586395406,0.05686,89944.0,89943.0,0.11350483]
[1763586396008,0.02906,89944.0,89943.0,0.17156483]
[1763586396600,0.48692,89952.0,89951.0,0.1402074]
[1763586396601,0.52618,89952.0,89951.0,0.1402074]
[1763586396902,0.3608,89952.0,89951.0,0.17155543]
[1763586397102,0.05686,89961.0,89960.0,0.1112862]
[1763586397302,0.05686,89961.0,89960.0,0.11348423]
[1763586397699,0.16538,89964.0,89963.0,0.05806]
[1763586397900,0.16538,89964.0,89963.0,0.00219803]
[1763586398412,0.01607,89958.0,89945.0,0.10852]
[1763586398707,0.05686,89956.0,89955.0,0.1402015]
[1763586398908,0.05905803,89956.0,89955.0,0.1409341]
[1763586399103,0.05905803,89956.0,89955.0,0.1700841]
[1763586399609,0.05905803,89956.0,89955.0,0.0587926]
[1763586400518,0.00219803,89956.0,89955.0,0.0587926]
[1763586400813,0.36096645,89964.0,89963.0,0.05806]
[1763586401011,0.36316448,89964.0,89963.0,0.1700751]
[1763586401205,0.00236448,89964.0,89963.0,0.1700751]
[1763586402210,0.00236448,89964.0,89963.0,0.0587926]
[1763586402513,0.42002448,89964.0,89963.0,0.0007326]
[1763586403914,0.05686,89954.0,89953.0,0.41886]
[1763586404119,0.05905803,89954.0,89953.0,0.0007326]
[1763586404621,0.41985803,89954.0,89953.0,0.0007326]
[1763586404917,0.41985803,89954.0,89953.0,0.0587926]
[1763586405813,0.05905803,89954.0,89953.0,0.0587926]
[1763586406209,0.00219803,89954.0,89953.0,0.0587926]
[1763586408015,0.05905803,89954.0,89953.0,0.0587926]
[1763586408216,0.00219803,89954.0,89953.0,0.0587926]
[1763586408716,0.41766,89962.0,89961.0,0.169345]
[1763586408910,0.41985803,89962.0,89961.0,0.0296426]
[1763586409114,0.41985803,89962.0,89961.0,0.0007326]
[1763586410515,0.05686,89956.0,89955.0,0.05806]
[1763586410708,0.05905803,89956.0,89955.0,0.0587926]
[1763586411208,0.05686,89948.0,89947.0,0.00016677]
[1763586411408,0.41985803,89948.0,89947.0,0.00016677]
[1763586412814,0.41985803,89948.0,89929.0,0.3608]
[1763586412815,0.05686,89934.0,89933.0,0.1113194]
[1763586413015,0.05905803,89934.0,89933.0,0.112052]
[1763586413611,0.05905803,89934.0,89933.0,0.170112]
[1763586413816,0.00219803,89934.0,89933.0,0.170112]
[1763586414119,0.03125803,89934.0,89933.0,0.170112]
[1763586414320,0.05686,89927.0,89926.0,0.1693873]
[1763586414518,0.05905803,89927.0,89926.0,0.1120599]
[1763586415425,0.05686,89926.0,89925.0,0.00016677]
[1763586415611,0.05905803,89926.0,89925.0,0.00016677]
[1763586416818,0.05686,89919.0,89918.0,0.3608]
[1763586417024,0.07293,89914.0,89910.0,0.3608]
[1763586417231,0.07512803,89914.0,89910.0,0.3608]
[1763586417523,0.07512803,89914.0,89913.0,0.0008254]
[1763586418315,0.07512803,89914.0,89913.0,0.0588854]
[1763586418629,0.00219803,89914.0,89913.0,0.0588854]
[1763586418922,0.00016677,89922.0,89921.0,0.05806]
[1763586419128,0.00016677,89922.0,89921.0,0.42105803]
[1763586419424,0.00016677,89922.0,89921.0,0.53239253]
[1763586420415,0.04513,89936.0,89935.0,0.1693772]
[1763586420718,0.07293,89936.0,89935.0,0.00219803]
[1763586421116,0.07293,89947.0,89946.0,0.1113036]
[1763586421322,0.07293,89947.0,89946.0,0.17156163]
[1763586421622,0.07293,89947.0,89946.0,0.00219803]
[1763586422424,0.07293,89947.0,89946.0,0.03110803]
[1763586422625,0.00016677,89955.0,89946.0,0.03110803]
[1763586422626,0.00016677,89955.0,89954.0,0.06797]
[1763586422819,0.06673677,89955.0,89954.0,0.07016803]
[1763586423019,0.06673677,89955.0,89954.0,0.00219803]
[1763586424123,0.06657,89950.0,89949.0,0.1112991]
[1763586424422,0.06657,89950.0,89949.0,0.11349713]
[1763586425229,0.06657,89950.0,89949.0,0.00219803]
[1763586426023,0.06657,89939.0,89938.0,0.11147927]
[1763586426231,0.06657,89939.0,89938.0,0.1136773]
[1763586426824,0.06657,89939.0,89938.0,0.1816473]
[1763586427023,0.40066,89951.0,89950.0,0.06797]
[1763586427222,0.42737,89951.0,89950.0,0.07016803]
[1763586428021,0.42737,89951.0,89950.0,0.00219803]
[1763586429224,0.42737,89951.0,89950.0,0.07016803]
[1763586429225,0.3608,89951.0,89950.0,0.07016803]
[1763586429524,0.04002677,89955.0,89954.0,0.06797]
[1763586429720,0.04002677,89955.0,89954.0,0.07016803]
[1763586430025,0.06673677,89955.0,89954.0,0.07016803]
[1763586430527,0.00016677,89955.0,89954.0,0.07016803]
[1763586433727,7e-08,89955.0,89954.0,0.17860803]
[1763586435929,0.06657007,89955.0,89954.0,0.07016803]
[1763586436134,7e-08,89955.0,89954.0,0.00219803]
[1763586436338,0.06657007,89955.0,89954.0,0.07016803]
[1763586436732,0.06657007,89955.0,89954.0,0.04317803]
[1763586437038,0.06657007,89955.0,89954.0,0.07016803]
[1763586438645,0.06657007,89955.0,89954.0,0.00219803]
[1763586439747,0.06657,89949.0,89948.0,0.3608]
[1763586439946,0.06657,89939.0,89938.0,0.00016677]
[1763586440154,0.06657,89939.0,89938.0,0.0703348]
[1763586440339,0.0897,89950.0,89949.0,0.1112998]
[1763586440542,0.0897,89950.0,89949.0,0.15447783]
[1763586440947,0.0897,89950.0,89949.0,0.11349783]
[1763586441652,0.0897,89950.0,89949.0,0.00219803]
[1763586443146,0.0897,89950.0,89949.0,0.11349783]
[1763586444345,0.0897,89950.0,89949.0,0.00219803]
[1763586445448,0.06657,89942.0,89941.0,0.1113096]
[1763586445646,0.06657,89939.0,89938.0,0.00016677]
[1763586446444,0.07222,89923.0,89922.0,0.3608]
[1763586446849,0.07222,89923.0,89922.0,0.36299803]
[1763586447548,0.07222,89923.0,89922.0,0.40031803]
[1763586447848,0.07222,89923.0,89922.0,0.36299803]
[1763586449261,0.38347,89930.0,89915.0,0.09119]
[1763586449262,0.07222,89916.0,89915.0,0.09119]
[1763586449563,0.07222,89916.0,89915.0,0.09338803]
[1763586450943,0.3608,89918.0,89914.0,0.00016677]
[1763586450944,0.07222,89915.0,89914.0,0.00016677]
[1763586451348,0.3608,89918.0,89896.0,0.1113646]
[1763586451349,0.07222,89905.0,89896.0,0.1113646]
[1763586451554,0.02267,89910.0,89886.0,0.0104554]
[1763586451555,0.07222,89887.0,89886.0,0.0104554]
[1763586451749,0.07222,89887.0,89886.0,0.00027813]
[1763586452265,0.07233249,89887.0,89886.0,0.00027813]
[1763586453951,0.07233249,89887.0,89886.0,0.00247616]
[1763586454258,0.07233249,89887.0,89886.0,0.03979616]
[1763586455549,0.07233249,89887.0,89886.0,0.00247616]
[1763586457049,0.00011249,89887.0,89886.0,0.07529616]
[1763586457253,0.07391249,89887.0,89886.0,0.07529616]
[1763586458850,0.07391249,89887.0,89886.0,0.00247616]
[1763586459855,0.07391249,89887.0,89886.0,0.00027813]
[1763586460259,0.43471249,89887.0,89886.0,0.00027813]
[1763586462153,0.09641,89880.0,89879.0,0.09123]
[1763586462557,0.0738,89879.0,89876.0,0.1113891]
[1763586462957,0.0738,89879.0,89878.0,0.00236489]
[1763586464164,0.0738,89879.0,89878.0,0.07518489]
[1763586464955,9.786e-05,89880.0,89879.0,0.1842065]
[1763586465150,9.786e-05,89880.0,89879.0,0.18640453]
[1763586465857,0.07389786,89880.0,89879.0,0.18640453]
[1763586466252,0.03709786,89880.0,89879.0,0.18640453]
[1763586466455,0.3608,89887.0,89886.0,0.1841978]
[1763586466657,0.3608,89906.0,89894.0,0.1841879]
[1763586466855,0.3608,89906.0,89894.0,0.18638593]
[1763586467055,6e-08,89895.0,89894.0,0.54718593]
[1763586467251,6e-08,89895.0,89886.0,0.3608]
[1763586467252,0.03680006,89895.0,89886.0,0.3608]
[1763586467557,6e-08,89895.0,89886.0,0.07501803]
[1763586467750,0.037,89887.0,89886.0,0.07501803]
[1763586468157,0.0738,89887.0,89886.0,0.07501803]
[1763586469264,0.4346,89887.0,89886.0,0.00219803]
[1763586470366,0.0738,89879.0,89878.0,0.00016686]
[1763586470665,0.4346,89879.0,89878.0,0.00236489]
[1763586470864,0.4346,89879.0,89878.0,0.07518489]
[1763586471256,0.0738,89879.0,89878.0,0.07518489]
[1763586471657,0.4346,89879.0,89878.0,0.07518489]
[1763586472059,0.18224,89887.0,89886.0,0.0357]
[1763586472268,0.0738,89887.0,89886.0,0.00219803]
[1763586473863,0.0738,89879.0,89878.0,0.00016686]
[1763586474064,0.0738,89879.0,89878.0,0.00236489]
[1763586474573,0.4346,89879.0,89878.0,0.00236489]
[1763586475662,0.4346,89879.0,89878.0,0.00016686]
[1763586477773,0.4346,89879.0,89878.0,0.00236489]
[1763586478371,0.0738,89872.0,89871.0,0.09124]
[1763586478968,0.0738,89872.0,89871.0,0.00219803]
[1763586479768,0.0738,89865.0,89864.0,0.0357]
[1763586479974,0.0738,89865.0,89864.0,0.00219803]
[1763586480168,0.0738,89865.0,89864.0,0.18642313]
[1763586480559,0.02261,89870.0,89863.0,0.00016686]
[1763586480560,0.0738,89864.0,89863.0,0.00016686]
[1763586480759,0.0738,89848.0,89840.0,0.111434]
[1763586481165,0.3608,89856.0,89850.0,0.09351]
[1763586481364,0.10844,89868.0,89855.0,0.07501803]
[1763586481572,0.10844,89868.0,89856.0,0.3608]
[1763586481876,0.07197,89858.0,89857.0,0.03789803]
[1763586482074,0.07197,89858.0,89857.0,0.07370803]
[1763586483364,0.07197,89858.0,89857.0,0.00219803]
[1763586486278,0.18045,89858.0,89857.0,0.00219803]
[1763586487966,0.18045,89858.0,89857.0,0.06996803]
[1763586488171,0.10848,89858.0,89857.0,0.06996803]
[1763586488372,0.17809,89858.0,89857.0,0.06996803]
[1763586488573,0.3608,89862.0,89861.0,0.06777]
[1763586488875,0.43041,89871.0,89870.0,0.03196]
[1763586489072,0.3608,89871.0,89870.0,0.19840573]
[1763586489380,0.06961,89863.0,89862.0,0.3608]